[Event "Caplin Hastings Masters 2023-24"]
[Site "Hastings"]
[Date "2024.01.03"]
[Round "7.29"]
[White "Han, Qixiang"]
[Black "ONUOHA, Obioma"]
[Result "0-1"]
[ECO "A90"]
[WhiteElo "1711"]
[BlackElo "1995"]
[Annotator "NA RC"]
[PlyCount "92"]
[EventDate "2023.12.18"]
[EventType "swiss"]
[EventCountry "ENG"]
[SourceTitle "playchess.com"]
[Source "ChessBase"]
[SourceQuality "1"]
[TimeControl "40/6000+30:3000+30"]

1. d4 {[%emt 0:00:01]} d5 {[%emt 0:00:19]} 2. c4 {[%emt 0:00:08]} e6 {[%emt 0:00:14]} 3. g3 {[%emt 0:00:13]} f5 {[%emt 0:00:08]} 4. Bg2 {[%emt 0:00:15]} Nf6 {[%emt 0:00:07]} 5. Nf3 {[%emt 0:00:09]} c6 {[%emt 0:00:23]} 6. O-O {[%emt 0:00:15]} Bd6 {[%emt 0:00:16]} 7. Qc2 {[%emt 0:00:32]} O-O {[%emt 0:00:17]} 8. Nc3 {[%emt 0:00:20]} Qe8 {[%emt 0:13:07]} 9. b3 {[%emt 0:05:55]} Qh5 {[%emt 0:00:17]} 10. h3 {[%emt 0:02:35]} Ne4 {[%emt 0:01:18]} 11. Bb2 {[%emt 0:01:14]} Nd7 {[%emt 0:02:20]} 12. Nd1 {[%emt 0:09:09]} f4 {[%emt 0:07:26]} 13. g4 {[%emt 0:01:34]} Qh6 {[%emt 0:00:38]} 14. a4 {[%emt 0:08:55]} Ndf6 {[%emt 0:03:49]} 15. Ba3 {[%emt 0:00:57]} Bxa3 {[%emt 0:04:00]} 16. Rxa3 {[%emt 0:00:58]} Ng5 {[%emt 0:00:24]} 17. Nxg5 {[%emt 0:03:51]} Qxg5 {[%emt 0:00:09]} 18. b4 {[%emt 0:09:03]} Bd7 {[%emt 0:01:57]} 19. Qc1 {[%emt 0:03:56]} h5 {[%emt 0:11:12]} 20. f3 {[%emt 0:02:54]} dxc4 {[%emt 0:01:13]} 21. Qxc4 {[%emt 0:05:17]} Nd5 {[%emt 0:00:22]} 22. Qb3 {[%emt 0:00:50]} Rae8 {[%emt 0:04:03]} 23. e4 {[%emt 0:01:22]} fxe3 {[%emt 0:01:31]} 24. Nxe3 {[%emt 0:00:36]} Nf4 {[%emt 0:00:34]} 25. Ra2 {[%emt 0:01:43]} Rf6 {[%emt 0:05:24]} 26. Nc4 {[%emt 0:02:35]} Qh4 {[%emt 0:03:19]} 27. Nd6 {[%emt 0:06:32]} Ref8 {[%emt 0:00:17]} 28. Nf5 {[%emt 0:01:37]} Rxf5 {[%emt 0:02:44]} 29. gxf5 {[%emt 0:00:50]} Rxf5 {[%emt 0:00:13]} 30. Qb1 {[%emt 0:03:11]} Rg5 {[%emt 0:02:16]} 31. Kh1 {[%emt 0:00:34]} Rg3 {[%emt 0:14:57]} 32. Rff2 {[%emt 0:05:21]} c5 {[%emt 0:08:10]} 33. b5 {[%emt 0:05:35]} cxd4 {[%emt 0:01:03]} 34. Qe4 {[%emt 0:02:23]} e5 {[%emt 0:04:48]} 35. Qb1 {[%emt 0:04:18]} Be6 {[%emt 0:07:57]} 36. Rad2 {[%emt 0:01:45]} Bd5 {[%emt 0:01:51]} 37. Qf5 {[%emt 0:02:49]} Nxg2 {[%emt 0:02:13]} 38. Qc8+ {[%emt 0:01:59]} Kh7 {[%emt 0:00:17]} 39. Qc2+ {[%emt 0:01:05]} Kh6 {[%emt 0:01:04]} 40. Qf5 {[%emt 0:01:57]} Ne3 {[%emt 0:02:42]} 41. Qb1 {[%emt 0:52:05]} Qxh3+ {[%emt 0:50:47]} 42. Rh2 {[%emt 0:00:22]} Bxf3+ {[%emt 0:00:09]} 43. Rdg2 {[%emt 0:00:18]} Bxg2+ {[%emt 0:00:30]} 44. Kg1 {[%emt 0:00:09]} Be4+ {[%emt 0:00:17]} 45. Kf2 {[%emt 0:00:08]} Qxh2+ {[%emt 0:00:09]} 46. Ke1 {[%emt 0:00:10]} Rg1# {[%emt 0:00:12]} 0-1

[Event "Caplin Hastings Masters 2023-24"]
[Site "Hastings"]
[Date "2024.01.03"]
[Round "7.30"]
[White "Larkin, Benjamin"]
[Black "Steiners, Emils"]
[Result "1-0"]
[ECO "C18"]
[WhiteElo "1814"]
[BlackElo "1993"]
[Annotator "NA RC"]
[PlyCount "87"]
[EventDate "2023.12.18"]
[EventType "swiss"]
[EventCountry "ENG"]
[SourceTitle "playchess.com"]
[Source "ChessBase"]
[SourceQuality "1"]
[TimeControl "40/6000+30:3000+30"]

1. e4 {[%emt 0:00:02]} e6 {[%emt 0:00:03]} 2. d4 {[%emt 0:00:06]} d5 {[%emt 0:00:02]} 3. Nc3 {[%emt 0:00:20]} Bb4 {[%emt 0:00:06]} 4. e5 {[%emt 0:00:15]} c5 {[%emt 0:00:05]} 5. a3 {[%emt 0:00:04]} Bxc3+ {[%emt 0:00:06]} 6. bxc3 {[%emt 0:00:05]} Ne7 {[%emt 0:00:17]} 7. Qg4 {[%emt 0:00:23]} Qc7 {[%emt 0:00:16]} 8. Qxg7 {[%emt 0:00:29]} Rg8 {[%emt 0:00:16]} 9. Qxh7 {[%emt 0:00:07]} cxd4 {[%emt 0:00:08]} 10. Ne2 {[%emt 0:00:13]} Nbc6 {[%emt 0:00:07]} 11. f4 {[%emt 0:00:07]} dxc3 {[%emt 0:00:09]} 12. Qd3 {[%emt 0:00:06]} d4 {[%emt 0:02:16]} 13. Nxd4 {[%emt 0:00:24]} Nxd4 {[%emt 0:00:10]} 14. Qxd4 {[%emt 0:00:04]} Bd7 {[%emt 0:00:21]} 15. Rg1 {[%emt 0:00:12]} Nf5 {[%emt 0:04:28]} 16. Qf2 {[%emt 0:00:10]} Qc6 {[%emt 0:02:33]} 17. Bd3 {[%emt 0:00:30]} Qd5 {[%emt 0:03:14]} 18. Be3 {[%emt 0:00:10]} Nxe3 {[%emt 0:06:33]} 19. Qxe3 {[%emt 0:00:39]} Rxg2 {[%emt 0:07:10]} 20. Rxg2 {[%emt 0:00:14]} Qxg2 {[%emt 0:00:03]} 21. Be4 {[%emt 0:00:06]} Qg4 {[%emt 0:13:49]} 22. Rb1 {[%emt 0:11:54]} Bc6 {[%emt 0:20:43]} 23. Bxc6+ {[%emt 0:00:08]} bxc6 {[%emt 0:00:02]} 24. Qg3 {[%emt 0:01:48]} Qxg3+ {[%emt 0:18:41]} 25. hxg3 {[%emt 0:00:08]} O-O-O {[%emt 0:00:24]} 26. Rb3 {[%emt 0:00:05]} Kc7 {[%emt 0:05:54]} 27. Rxc3 {[%emt 0:00:15]} Rh8 {[%emt 0:00:45]} 28. Ke2 {[%emt 0:00:56]} Rh2+ {[%emt 0:03:00]} 29. Kf3 {[%emt 0:00:23]} Kb6 {[%emt 0:02:20]} 30. Kg4 {[%emt 0:01:46]} Rh6 {[%emt 0:01:34]} 31. Kg5 {[%emt 0:00:27]} Rg6+ {[%emt 0:00:04]} 32. Kh5 {[%emt 0:00:07]} Kc7 {[%emt 0:00:39]} 33. Rd3 {[%emt 0:02:13]} Rg8 {[%emt 0:02:01]} 34. g4 {[%emt 0:00:17]} Rg7 {[%emt 0:01:31]} 35. f5 {[%emt 0:03:38]} exf5 {[%emt 0:01:09]} 36. gxf5 {[%emt 0:00:06]} Rg2 {[%emt 0:03:53]} 37. e6 {[%emt 0:02:07]} fxe6 {[%emt 0:03:22]} 38. f6 {[%emt 0:00:28]} Rf2 {[%emt 0:03:55]} 39. Kg6 {[%emt 0:00:09]} c5 {[%emt 0:02:34]} 40. f7 {[%emt 0:01:14]} c4 {[%emt 0:02:09]} 41. Rd1 {[%emt 0:50:11]} e5 {[%emt 0:04:53]} 42. Kg7 {[%emt 0:00:00]} Rg2+ {[%emt 0:00:46]} 43. Kf6 {[%emt 0:00:00]} Rxc2 {[%emt 0:01:58]} 44. Rf1 {[%emt 0:00:00]} 1-0

[Event "Caplin Hastings Masters 2023-24"]
[Site "Hastings"]
[Date "2024.01.03"]
[Round "7.31"]
[White "Verbytski, Oleg"]
[Black "Weersing, Abigail Riis"]
[Result "1-0"]
[ECO "C06"]
[WhiteElo "1771"]
[BlackElo "2056"]
[Annotator "NA RC"]
[PlyCount "123"]
[EventDate "2023.12.18"]
[EventType "swiss"]
[EventCountry "ENG"]
[SourceTitle "playchess.com"]
[Source "ChessBase"]
[SourceQuality "1"]
[TimeControl "40/6000+30:3000+30"]

1. e4 {[%emt 0:00:01]} e6 {[%emt 0:00:05]} 2. d4 {[%emt 0:00:04]} d5 {[%emt 0:00:04]} 3. Nd2 {[%emt 0:00:02]} Nf6 {[%emt 0:00:07]} 4. e5 {[%emt 0:00:07]} Nfd7 {[%emt 0:00:06]} 5. Bd3 {[%emt 0:00:05]} c5 {[%emt 0:00:07]} 6. c3 {[%emt 0:00:02]} Nc6 {[%emt 0:00:11]} 7. Ne2 {[%emt 0:00:18]} cxd4 {[%emt 0:00:12]} 8. cxd4 {[%emt 0:00:11]} f6 {[%emt 0:00:25]} 9. exf6 {[%emt 0:00:10]} Nxf6 {[%emt 0:00:07]} 10. Nf3 {[%emt 0:00:21]} Bd6 {[%emt 0:00:41]} 11. O-O {[%emt 0:00:22]} Qc7 {[%emt 0:00:22]} 12. Bg5 {[%emt 0:00:11]} O-O {[%emt 0:00:43]} 13. Rc1 {[%emt 0:00:06]} Nh5 {[%emt 0:11:12]} 14. Ng3 {[%emt 0:06:46]} Nxg3 {[%emt 0:05:11]} 15. hxg3 {[%emt 0:00:08]} h6 {[%emt 0:01:53]} 16. Be3 {[%emt 0:03:29]} Qf7 {[%emt 0:25:04]} 17. Bb1 {[%emt 0:08:13]} Bd7 {[%emt 0:03:11]} 18. Qd3 {[%emt 0:08:16]} g5 {[%emt 0:00:17]} 19. a3 {[%emt 0:02:24]} a6 {[%emt 0:03:25]} 20. Bd2 {[%emt 0:08:37]} Ne7 {[%emt 0:02:58]} 21. Qe2 {[%emt 0:01:11]} Nf5 {[%emt 0:07:14]} 22. Bc3 {[%emt 0:04:17]} Qh5 {[%emt 0:09:46]} 23. Bd3 {[%emt 0:14:14]} Rac8 {[%emt 0:22:19]} 24. Nh2 {[%emt 0:07:07]} Qxe2 {[%emt 0:02:20]} 25. Bxe2 {[%emt 0:00:06]} Rc6 {[%emt 0:01:43]} 26. g4 {[%emt 0:01:36]} Ne7 {[%emt 0:00:48]} 27. g3 {[%emt 0:01:56]} Rfc8 {[%emt 0:01:32]} 28. Ra1 {[%emt 0:02:51]} b5 {[%emt 0:04:30]} 29. Nf3 {[%emt 0:03:08]} Ng6 {[%emt 0:01:21]} 30. Kg2 {[%emt 0:01:50]} Rf8 {[%emt 0:00:52]} 31. Bd3 {[%emt 0:02:14]} Kg7 {[%emt 0:00:14]} 32. Bb4 {[%emt 0:01:12]} Bxb4 {[%emt 0:00:31]} 33. axb4 {[%emt 0:00:05]} Rd6 {[%emt 0:04:26]} 34. Rfc1 {[%emt 0:02:03]} Rc8 {[%emt 0:01:00]} 35. Rc5 {[%emt 0:00:07]} Ne7 {[%emt 0:01:00]} 36. Ne5 {[%emt 0:01:34]} Be8 {[%emt 0:00:08]} 37. Bb1 {[%emt 0:04:02]} Kf6 {[%emt 0:00:34]} 38. Ra3 {[%emt 0:01:25]} Rb6 {[%emt 0:01:24]} 39. Kh3 {[%emt 0:08:15]} Rd6 {[%emt 0:00:15]} 40. b3 {[%emt 0:04:52]} Kg7 {[%emt 0:00:58]} 41. Ra2 {[%emt 0:50:20]} Rb6 {[%emt 0:03:00]} 42. f3 {[%emt 0:00:00]} Rd6 {[%emt 0:11:23]} 43. Kg2 {[%emt 0:00:00]} Rb6 {[%emt 0:00:39]} 44. Kg1 {[%emt 0:00:00]} Rd6 {[%emt 0:00:22]} 45. f4 {[%emt 0:00:00]} gxf4 {[%emt 0:07:07]} 46. gxf4 {[%emt 0:00:00]} Rb6 {[%emt 0:03:06]} 47. Kh2 {[%emt 0:00:00]} Bc6 {[%emt 0:03:17]} 48. Rac2 {[%emt 0:00:00]} Kf6 {[%emt 0:00:54]} 49. Rc1 {[%emt 0:00:00]} Kg7 {[%emt 0:00:37]} 50. Kg3 {[%emt 0:00:00]} Kf8 {[%emt 0:01:20]} 51. f5 {[%emt 0:00:00]} Kg7 {[%emt 0:05:21]} 52. f6+ {[%emt 0:00:00]} Kxf6 {[%emt 0:00:21]} 53. Rf1+ {[%emt 0:00:00]} Nf5+ {[%emt 0:01:18]} 54. gxf5 {[%emt 0:00:00]} Rg8+ {[%emt 0:00:35]} 55. Kh2 {[%emt 0:00:00]} Be8 {[%emt 0:00:37]} 56. Rc7 {[%emt 0:00:00]} Rg5 {[%emt 0:02:24]} 57. fxe6+ {[%emt 0:00:00]} Kxe6 {[%emt 0:00:14]} 58. Rf8 {[%emt 0:00:00]} Bh5 {[%emt 0:00:53]} 59. Nd3 {[%emt 0:00:00]} Bd1 {[%emt 0:01:46]} 60. Nc5+ {[%emt 0:00:00]} Kd6 {[%emt 0:00:11]} 61. Rd7+ {[%emt 0:00:00]} Kc6 {[%emt 0:00:10]} 62. Rf6# {[%emt 0:00:00]} 1-0

[Event "Caplin Hastings Masters 2023-24"]
[Site "Hastings"]
[Date "2024.01.03"]
[Round "7.32"]
[White "Liu, Tianyi"]
[Black "Teh, Wee Zhun"]
[Result "1/2-1/2"]
[ECO "C82"]
[WhiteElo "2022"]
[BlackElo "1858"]
[Annotator "NA RC"]
[PlyCount "96"]
[EventDate "2023.12.18"]
[EventType "swiss"]
[EventCountry "ENG"]
[SourceTitle "playchess.com"]
[Source "ChessBase"]
[SourceQuality "1"]
[TimeControl "40/6000+30:3000+30"]

1. e4 {[%emt 0:00:08]} e5 {[%emt 0:00:37]} 2. Nf3 {[%emt 0:00:06]} Nc6 {[%emt 0:00:07]} 3. Bb5 {[%emt 0:00:35]} a6 {[%emt 0:00:40]} 4. Ba4 {[%emt 0:00:06]} Nf6 {[%emt 0:00:52]} 5. O-O {[%emt 0:00:12]} Nxe4 {[%emt 0:01:35]} 6. d4 {[%emt 0:00:40]} b5 {[%emt 0:00:59]} 7. Bb3 {[%emt 0:00:05]} d5 {[%emt 0:00:32]} 8. dxe5 {[%emt 0:00:08]} Be6 {[%emt 0:00:35]} 9. c3 {[%emt 0:00:31]} Bc5 {[%emt 0:01:28]} 10. Nbd2 {[%emt 0:01:56]} O-O {[%emt 0:00:33]} 11. Bc2 {[%emt 0:00:55]} Nxf2 {[%emt 0:06:45]} 12. Rxf2 {[%emt 0:01:14]} f6 {[%emt 0:03:17]} 13. exf6 {[%emt 0:08:25]} Bxf2+ {[%emt 0:04:25]} 14. Kxf2 {[%emt 0:01:04]} Qxf6 {[%emt 0:00:41]} 15. Nf1 {[%emt 0:16:26]} Ne5 {[%emt 0:18:09]} 16. Be3 {[%emt 0:11:44]} Nxf3 {[%emt 0:19:48]} 17. gxf3 {[%emt 0:00:28]} c6 {[%emt 0:06:16]} 18. Nd2 {[%emt 0:14:15]} Bg4 {[%emt 0:07:54]} 19. Kg2 {[%emt 0:03:37]} Bh5 {[%emt 0:05:34]} 20. Qf1 {[%emt 0:03:39]} b4 {[%emt 0:09:32]} 21. Rc1 {[%emt 0:11:06]} bxc3 {[%emt 0:02:31]} 22. bxc3 {[%emt 0:00:07]} Rae8 {[%emt 0:04:21]} 23. Qf2 {[%emt 0:01:21]} Qe5 {[%emt 0:03:48]} 24. Re1 {[%emt 0:07:05]} Qxc3 {[%emt 0:01:30]} 25. Bb1 {[%emt 0:04:10]} Qf6 {[%emt 0:02:40]} 26. f4 {[%emt 0:03:15]} Bg6 {[%emt 0:03:45]} 27. Bxg6 {[%emt 0:03:45]} Qxg6+ {[%emt 0:00:13]} 28. Kh1 {[%emt 0:00:47]} Qd3 {[%emt 0:01:36]} 29. Bc5 {[%emt 0:05:46]} Rxe1+ {[%emt 0:00:31]} 30. Qxe1 {[%emt 0:00:05]} Rb8 {[%emt 0:00:34]} 31. Kg1 {[%emt 0:04:17]} Qg6+ {[%emt 0:00:37]} 32. Kf2 {[%emt 0:04:50]} Re8 {[%emt 0:00:33]} 33. Qc1 {[%emt 0:00:27]} Qd3 {[%emt 0:01:08]} 34. Nf3 {[%emt 0:00:18]} Re2+ {[%emt 0:01:11]} 35. Kg3 {[%emt 0:00:02]} h5 {[%emt 0:01:22]} 36. Qf1 {[%emt 0:03:55]} h4+ {[%emt 0:00:35]} 37. Kxh4 {[%emt 0:00:36]} Re3 {[%emt 0:00:50]} 38. Qxd3 {[%emt 0:00:33]} Rxd3 {[%emt 0:00:02]} 39. Kg4 {[%emt 0:00:26]} Rc3 {[%emt 0:00:33]} 40. Bd4 {[%emt 0:00:51]} Ra3 {[%emt 0:00:43]} 41. Ne5 {[%emt 0:02:46]} Rxa2 {[%emt 0:01:06]} 42. Nxc6 {[%emt 0:05:21]} Rxh2 {[%emt 0:22:43]} 43. Kf5 {[%emt 0:13:46]} Re2 {[%emt 0:03:39]} 44. Be5 {[%emt 0:02:23]} Kf7 {[%emt 0:06:37]} 45. Nd8+ {[%emt 0:01:35]} Ke7 {[%emt 0:06:19]} 46. Nc6+ {[%emt 0:00:36]} Kf7 {[%emt 0:03:03]} 47. Nd8+ {[%emt 0:00:08]} Ke7 {[%emt 0:05:10]} 48. Nc6+ {[%emt 0:00:07]} Kf7 {[%emt 0:00:12]} 1/2-1/2

[Event "Caplin Hastings Masters 2023-24"]
[Site "Hastings"]
[Date "2024.01.03"]
[Round "7.33"]
[White "Butt, Laurence"]
[Black "Kovalskyi, Roman"]
[Result "0-1"]
[ECO "A03"]
[WhiteElo "1688"]
[BlackElo "2009"]
[Annotator "NA RC"]
[PlyCount "68"]
[EventDate "2023.12.18"]
[EventType "swiss"]
[EventCountry "ENG"]
[SourceTitle "playchess.com"]
[Source "ChessBase"]
[SourceQuality "1"]
[TimeControl "40/6000+30:3000+30"]

1. d4 {[%emt 0:00:21]} Nf6 {[%emt 0:08:38]} 2. f4 {[%emt 0:01:10]} d5 {[%emt 0:01:05]} 3. Nf3 {[%emt 0:00:11]} c5 {[%emt 0:00:21]} 4. e3 {[%emt 0:00:06]} Nc6 {[%emt 0:00:05]} 5. Be2 {[%emt 0:00:20]} Bf5 {[%emt 0:00:57]} 6. O-O {[%emt 0:00:33]} Rc8 {[%emt 0:00:49]} 7. c3 {[%emt 0:00:31]} e6 {[%emt 0:05:48]} 8. Ne5 {[%emt 0:00:12]} h5 {[%emt 0:21:26]} 9. Nd2 {[%emt 0:01:29]} Bd6 {[%emt 0:01:19]} 10. Ndf3 {[%emt 0:00:31]} Ng4 {[%emt 0:11:17]} 11. h3 {[%emt 0:06:59]} Bxe5 {[%emt 0:01:39]} 12. fxe5 {[%emt 0:00:46]} Nh6 {[%emt 0:00:59]} 13. dxc5 {[%emt 0:05:46]} Be4 {[%emt 0:12:30]} 14. Bb5 {[%emt 0:00:59]} Nf5 {[%emt 0:02:13]} 15. Rf2 {[%emt 0:13:38]} Qc7 {[%emt 0:10:40]} 16. Bd2 {[%emt 0:08:54]} Kf8 {[%emt 0:01:43]} 17. Bxc6 {[%emt 0:00:23]} bxc6 {[%emt 0:00:10]} 18. c4 {[%emt 0:02:33]} dxc4 {[%emt 0:01:09]} 19. Bc3 {[%emt 0:02:08]} Rd8 {[%emt 0:03:50]} 20. Rd2 {[%emt 0:03:50]} Rd3 {[%emt 0:02:58]} 21. Rxd3 {[%emt 0:00:30]} Bxd3 {[%emt 0:03:57]} 22. Qe1 {[%emt 0:05:14]} Qe7 {[%emt 0:01:40]} 23. Kh1 {[%emt 0:00:50]} Kg8 {[%emt 0:04:39]} 24. Bd4 {[%emt 0:07:54]} Rh6 {[%emt 0:00:42]} 25. b3 {[%emt 0:01:56]} Rg6 {[%emt 0:02:02]} 26. bxc4 {[%emt 0:03:36]} Be4 {[%emt 0:01:59]} 27. Qf2 {[%emt 0:05:16]} Rg3 {[%emt 0:00:38]} 28. Kh2 {[%emt 0:05:27]} Bxf3 {[%emt 0:00:30]} 29. gxf3 {[%emt 0:00:08]} Qh4 {[%emt 0:00:04]} 30. Qf1 {[%emt 0:01:13]} Nxd4 {[%emt 0:04:58]} 31. exd4 {[%emt 0:01:14]} Qf4 {[%emt 0:00:11]} 32. Kh1 {[%emt 0:08:12]} Rxf3 {[%emt 0:00:25]} 33. Qg2 {[%emt 0:02:26]} Rf2 {[%emt 0:00:06]} 34. Qxc6 {[%emt 0:00:31]} Qh2# {[%emt 0:00:05]} 0-1

[Event "Caplin Hastings Masters 2023-24"]
[Site "Hastings"]
[Date "2024.01.03"]
[Round "7.35"]
[White "Rami, Talab"]
[Black "Dewangan, Aayush"]
[Result "1-0"]
[ECO "B51"]
[WhiteElo "1947"]
[BlackElo "1655"]
[Annotator "NA RC"]
[PlyCount "81"]
[EventDate "2023.12.18"]
[EventType "swiss"]
[EventCountry "ENG"]
[SourceTitle "playchess.com"]
[Source "ChessBase"]
[SourceQuality "1"]
[TimeControl "40/6000+30:3000+30"]

1. e4 {[%emt 0:00:08]} c5 {[%emt 0:00:09]} 2. Nf3 {[%emt 0:00:14]} d6 {[%emt 0:00:09]} 3. Bb5+ {[%emt 0:00:13]} Nd7 {[%emt 0:00:11]} 4. d4 {[%emt 0:00:13]} cxd4 {[%emt 0:00:03]} 5. Qxd4 {[%emt 0:00:09]} a6 {[%emt 0:00:02]} 6. Bxd7+ {[%emt 0:00:13]} Qxd7 {[%emt 0:00:11]} 7. c4 {[%emt 0:00:47]} e5 {[%emt 0:00:10]} 8. Qd3 {[%emt 0:00:38]} f5 {[%emt 0:00:30]} 9. Nc3 {[%emt 0:04:07]} Nf6 {[%emt 0:00:33]} 10. Bg5 {[%emt 0:07:16]} fxe4 {[%emt 0:06:09]} 11. Nxe4 {[%emt 0:00:18]} Nxe4 {[%emt 0:00:02]} 12. Qxe4 {[%emt 0:00:03]} Qf5 {[%emt 0:00:01]} 13. Qe2 {[%emt 0:04:26]} h6 {[%emt 0:04:39]} 14. Be3 {[%emt 0:04:46]} Be7 {[%emt 0:03:03]} 15. O-O {[%emt 0:06:15]} Bd7 {[%emt 0:07:58]} 16. Nd2 {[%emt 0:05:09]} Rc8 {[%emt 0:05:36]} 17. Rac1 {[%emt 0:09:44]} O-O {[%emt 0:01:55]} 18. f3 {[%emt 0:10:30]} b5 {[%emt 0:05:35]} 19. Rfd1 {[%emt 0:04:42]} bxc4 {[%emt 0:06:04]} 20. Nxc4 {[%emt 0:01:07]} Bb5 {[%emt 0:00:46]} 21. b3 {[%emt 0:03:56]} Qe6 {[%emt 0:11:42]} 22. a4 {[%emt 0:04:55]} Be8 {[%emt 0:09:29]} 23. Qd3 {[%emt 0:14:03]} Bg6 {[%emt 0:02:32]} 24. Qd2 {[%emt 0:03:19]} Bh5 {[%emt 0:06:01]} 25. Qa5 {[%emt 0:01:52]} Qg6 {[%emt 0:05:32]} 26. Qd5+ {[%emt 0:03:47]} Kh8 {[%emt 0:00:09]} 27. Kh1 {[%emt 0:00:32]} e4 {[%emt 0:09:24]} 28. g4 {[%emt 0:03:16]} exf3 {[%emt 0:00:52]} 29. Qxh5 {[%emt 0:00:21]} Qe4 {[%emt 0:00:05]} 30. Qd5 {[%emt 0:01:35]} Qxg4 {[%emt 0:01:03]} 31. Rg1 {[%emt 0:00:17]} Qh3 {[%emt 0:04:40]} 32. Rg3 {[%emt 0:01:13]} Qh4 {[%emt 0:00:01]} 33. Rxf3 {[%emt 0:00:38]} Rfe8 {[%emt 0:06:17]} 34. Rg1 {[%emt 0:01:00]} Bf6 {[%emt 0:02:01]} 35. Nxd6 {[%emt 0:00:45]} Rcd8 {[%emt 0:03:48]} 36. Nf7+ {[%emt 0:00:36]} Kh7 {[%emt 0:00:07]} 37. Qf5+ {[%emt 0:00:22]} Kg8 {[%emt 0:00:14]} 38. Nxd8 {[%emt 0:00:15]} Bxd8 {[%emt 0:01:32]} 39. Qf7+ {[%emt 0:00:12]} Kh7 {[%emt 0:00:10]} 40. Rxg7+ {[%emt 0:00:29]} Kh8 {[%emt 0:00:08]} 41. Rh7# {[%emt 0:50:34]} 1-0

[Event "Caplin Hastings Masters 2023-24"]
[Site "Hastings"]
[Date "2024.01.03"]
[Round "7.36"]
[White "Moracchini, Margaux"]
[Black "Gibbs, Dominic V"]
[Result "0-1"]
[ECO "B03"]
[WhiteElo "1922"]
[BlackElo "1795"]
[Annotator "NA"]
[PlyCount "82"]
[EventDate "2023.12.18"]
[EventType "swiss"]
[EventCountry "ENG"]
[SourceTitle "playchess.com"]
[Source "ChessBase"]
[SourceQuality "1"]
[TimeControl "40/6000+30:3000+30"]

1. e4 {[%emt 0:06:09]} Nf6 {[%emt 0:00:08]} 2. e5 {[%emt 0:02:13]} Nd5 {[%emt 0:00:09]} 3. c4 {[%emt 0:00:52]} Nb6 {[%emt 0:00:08]} 4. d4 {[%emt 0:00:31]} d6 {[%emt 0:00:11]} 5. exd6 {[%emt 0:00:50]} exd6 {[%emt 0:00:16]} 6. Bd3 {[%emt 0:06:31]} Nc6 {[%emt 0:00:29]} 7. Ne2 {[%emt 0:01:32]} Be7 {[%emt 0:06:44]} 8. Be3 {[%emt 0:04:10]} Bg4 {[%emt 0:03:57]} 9. O-O {[%emt 0:01:52]} O-O {[%emt 0:06:42]} 10. Qd2 {[%emt 0:11:21]} Bf6 {[%emt 0:05:38]} 11. Nbc3 {[%emt 0:05:57]} Nb4 {[%emt 0:04:25]} 12. b3 {[%emt 0:03:57]} Nxd3 {[%emt 0:01:04]} 13. Qxd3 {[%emt 0:00:20]} Bxe2 {[%emt 0:05:35]} 14. Nxe2 {[%emt 0:00:59]} d5 {[%emt 0:00:39]} 15. c5 {[%emt 0:02:11]} Nc8 {[%emt 0:00:13]} 16. Bf4 {[%emt 0:06:38]} Ne7 {[%emt 0:02:47]} 17. b4 {[%emt 0:05:41]} g6 {[%emt 0:02:25]} 18. a4 {[%emt 0:06:34]} Nf5 {[%emt 0:02:12]} 19. g4 {[%emt 0:03:17]} Ng7 {[%emt 0:01:56]} 20. Bh6 {[%emt 0:10:01]} Re8 {[%emt 0:02:49]} 21. Bxg7 {[%emt 0:00:07]} Bxg7 {[%emt 0:01:08]} 22. Nc3 {[%emt 0:04:06]} c6 {[%emt 0:01:56]} 23. Rfd1 {[%emt 0:03:01]} Qg5 {[%emt 0:04:05]} 24. h3 {[%emt 0:03:23]} h5 {[%emt 0:04:21]} 25. Qg3 {[%emt 0:01:09]} hxg4 {[%emt 0:01:46]} 26. Qxg4 {[%emt 0:01:07]} Qf6 {[%emt 0:05:44]} 27. b5 {[%emt 0:01:58]} Re6 {[%emt 0:01:06]} 28. a5 {[%emt 0:01:02]} a6 {[%emt 0:02:37]} 29. bxc6 {[%emt 0:00:46]} bxc6 {[%emt 0:00:11]} 30. Rab1 {[%emt 0:00:33]} Qe7 {[%emt 0:04:28]} 31. Kf1 {[%emt 0:02:37]} Qc7 {[%emt 0:06:41]} 32. Rb6 {[%emt 0:00:43]} Bh6 {[%emt 0:06:30]} 33. Rdb1 {[%emt 0:06:18]} Qh2 {[%emt 0:03:25]} 34. Ne2 {[%emt 0:04:15]} Bd2 {[%emt 0:07:49]} 35. Ng3 {[%emt 0:02:12]} Kg7 {[%emt 0:08:09]} 36. Rb7 {[%emt 0:01:08]} Rae8 {[%emt 0:01:50]} 37. Nf5+ {[%emt 0:00:24]} Kf6 {[%emt 0:01:24]} 38. Qh4+ {[%emt 0:01:08]} Bg5 {[%emt 0:01:22]} 39. Rxf7+ {[%emt 0:00:49]} Kxf7 {[%emt 0:00:20]} 40. Qh7+ {[%emt 0:01:08]} Kf6 {[%emt 0:00:38]} 41. Ng3 {[%emt 0:50:08]} R6e7 {[%emt 0:53:57]} 0-1